bitfinex/quotes_ETHUSD_20250905
["timestamp","ask_amount","ask_price","bid_price","bid_amount"]
[1757091160646,0.026,4298.8,4298.7,4.2]
[1757091161352,0.026,4298.8,4298.7,6.52628469]
[1757091161946,0.026,4298.8,4298.7,6.81398469]
[1757091162562,0.026,4298.8,4298.7,6.52628469]
[1757091165341,0.026,4298.8,4298.7,8.10335077]
[1757091165571,0.026,4298.8,4298.7,8.21935077]
[1757091165936,0.026,4298.8,4298.7,7.93165077]
[1757091166147,0.026,4298.8,4298.7,6.64228469]
[1757091166353,0.026,4298.8,4298.7,4.316]
[1757091166354,0.7857,4298.8,4298.7,4.316]
[1757091166857,1.2463,4298.8,4298.7,4.2]
[1757091169259,3.57253057,4298.8,4298.7,4.2]
[1757091169458,1.2463,4298.8,4298.7,4.2]
[1757091169867,0.026,4298.8,4298.7,4.2]
[1757091170388,3.57253057,4298.8,4298.7,4.2]
[1757091170588,1.2463,4298.8,4298.7,4.2]
[1757091170960,0.026,4298.8,4298.7,4.2]
[1757091171160,0.7857,4298.8,4298.7,4.2]
[1757091171373,0.026,4298.8,4298.7,4.2]
[1757091171958,0.34,4298.8,4298.7,4.2]
[1757091172170,0.7857,4298.8,4298.7,4.2]
[1757091173075,7.49353057,4298.8,4298.7,4.2]
[1757091180591,4.7067,4298.8,4298.7,4.2]
[1757091181001,0.116,4298.7,4298.5,0.004]
[1757091181172,3.921,4298.6,4298.5,0.004]
[1757091181763,4.6807,4298.6,4298.5,0.004]
[1757091182492,4.235,4298.6,4298.5,0.004]
[1757091182662,4.6807,4298.6,4298.5,0.004]
[1757091183605,4.235,4298.6,4298.5,0.22050084]
[1757091183900,4.6807,4298.6,4298.5,0.22050084]
[1757091184262,3.921,4298.6,4298.5,0.50820084]
[1757091184460,3.921,4298.6,4298.5,1.2676647]
[1757091184998,3.921,4298.6,4298.5,0.98420084]
[1757091186083,3.921,4298.6,4298.5,5.18420084]
[1757091186689,0.116,4298.7,4298.5,5.18420084]
[1757091186884,0.116,4298.7,4298.6,0.21650084]
[1757091187396,0.116,4298.7,4298.6,0.50420084]
[1757091187700,3.947,4298.8,4298.6,1.45102092]
[1757091187701,0.026,4298.8,4298.6,1.45102092]
[1757091187996,0.026,4298.8,4298.7,3.13478553]
[1757091188294,0.026,4298.8,4298.7,3.13472683]
[1757091188495,0.026,4298.8,4298.7,3.42242683]
[1757091188698,0.026,4298.8,4298.7,5.64883476]
[1757091189111,0.026,4298.8,4298.7,10.02870526]
[1757091189412,0.026,4298.8,4298.7,13.94970526]
[1757091189574,0.026,4298.8,4298.7,11.44362057]
[1757091189775,0.026,4298.8,4298.7,11.54349733]
[1757091190686,0.026,4298.8,4298.7,11.06749733]
[1757091191078,0.026,4298.8,4298.7,8.74121264]
[1757091191385,3.11203057,4298.8,4298.7,4.41651264]
[1757091191586,3.11203057,4298.8,4298.0,0.09722629]
[1757091191587,3.11828469,4298.7,4298.0,0.09722629]
[1757091191906,0.792,4298.2,4297.2,0.004]
[1757091192075,10.35847348,4297.7,4297.2,0.004]
[1757091192275,14.27947348,4297.7,4297.2,0.004]
[1757091192506,15.24257348,4297.7,4297.2,0.004]
[1757091193709,7.50292597,4297.7,4297.2,0.004]
[1757091194432,8.29492597,4297.7,4297.2,0.004]
[1757091194575,11.29492597,4297.7,4297.2,0.004]
[1757091195476,11.41217139,4297.7,4297.2,0.004]
[1757091195886,7.37392597,4297.7,4297.2,0.004]
[1757091196246,11.29492597,4297.7,4297.2,0.004]
[1757091201081,3.11909671,4297.2,4296.8,0.025]
[1757091201282,8.75409671,4297.2,4296.8,0.025]
[1757091201478,10.00919671,4297.2,4296.8,0.025]
[1757091201704,13.00919671,4297.2,4296.8,0.025]
[1757091202916,2.32780092,4295.9,4295.8,0.025]
[1757091203103,6.24980092,4295.9,4295.8,0.025]
[1757091203505,3.922,4295.9,4295.8,0.025]
[1757091203710,3.922,4295.9,4295.8,0.3132]
[1757091204594,3.922,4295.9,4295.8,0.7857]
[1757091205059,3.922,4295.9,4295.8,0.9695]
[1757091205397,3.922,4295.9,4295.8,0.7857]
[1757091205705,3.922,4295.9,4295.8,4.88393042]
[1757091207504,3.922,4295.9,4295.8,4.41143042]
[1757091208634,3.922,4295.9,4295.8,0.025]
[1757091208635,4.038,4295.9,4295.8,0.025]
[1757091209207,4.038,4295.9,4295.8,0.3132]
[1757091209727,4.038,4295.9,4295.8,0.7857]
[1757091210308,0.116,4295.9,4295.8,0.7857]
[1757091210539,4.038,4295.9,4295.8,0.3132]
[1757091210842,4.038,4295.9,4295.8,0.025]
[1757091211206,6.36580092,4295.9,4295.8,0.025]
[1757091211425,7.12560092,4295.9,4295.8,0.025]
[1757091211657,7.62090092,4295.9,4295.8,0.025]
[1757091212260,4.038,4295.9,4295.8,0.025]
[1757091212436,4.038,4295.9,4295.8,0.3132]
[1757091212755,4.038,4295.9,4295.8,0.025]
[1757091213366,4.038,4295.9,4295.8,0.3132]
[1757091215263,3.922,4295.9,4295.8,4.88393042]
[1757091215436,4.214,4295.9,4295.8,4.12323042]
[1757091215642,4.7978,4295.9,4295.8,4.12323042]
[1757091216027,7.12560092,4295.9,4295.8,4.12323042]
[1757091216226,7.12560092,4295.9,4295.8,0.025]
[1757091216458,4.7978,4295.9,4295.8,0.025]
[1757091216658,7.12560092,4295.9,4295.8,0.025]
[1757091217064,4.7978,4295.9,4295.8,0.025]
[1757091218062,4.038,4295.9,4295.8,0.025]
[1757091218364,7.12560092,4295.9,4295.8,0.025]
[1757091218565,4.7978,4295.9,4295.8,0.025]
[1757091219244,7.12560092,4295.9,4295.8,0.025]
[1757091219572,4.7978,4295.9,4295.8,0.025]
[1757091219767,7.12560092,4295.9,4295.8,0.025]
[1757091219954,7.12560092,4295.9,4295.8,0.029]
[1757091220468,7.57700092,4295.9,4295.8,0.029]
[1757091222149,14.16168138,4295.9,4295.8,0.029]
[1757091222465,7.57700092,4295.9,4295.8,0.029]
[1757091225051,6.36580092,4295.9,4295.8,0.029]
[1757091225246,6.67800092,4295.9,4295.8,0.029]
[1757091225445,7.59780092,4295.9,4295.8,0.029]
[1757091226260,3.22440092,4295.9,4295.8,0.029]
[1757091226552,7.14640092,4295.9,4295.8,0.029]
[1757091227156,1.715,4296.0,4295.8,0.3231]
[1757091227349,3.922,4295.9,4295.8,0.7878]
[1757091227760,3.922,4295.9,4295.8,0.3231]
[1757091228482,3.922,4295.9,4295.8,0.7878]
[1757091228847,1.715,4296.0,4295.8,0.7878]
[1757091229047,0.001,4296.8,4296.0,2.3277076]
[1757091229365,3.922,4296.7,4296.1,4.56293042]
[1757091229567,3.922,4296.7,4296.6,0.2941]
[1757091229768,5.154,4296.7,4296.1,4.09823042]
[1757091229958,2.32757645,4296.4,4296.1,4.09823042]
[1757091230162,2.63983837,4296.2,4296.1,4.09823042]
[1757091230360,3.10823837,4296.2,4296.1,4.09823042]
[1757091231847,3.55963837,4296.2,4296.1,4.09823042]
[1757091232782,4.35163837,4296.2,4296.1,4.09823042]
[1757091232986,7.35163837,4296.2,4296.1,4.09823042]
[1757091233481,7.35163837,4296.2,4295.8,0.029]
[1757091233482,2.32780092,4295.9,4295.8,0.029]
[1757091233686,10.96480092,4295.9,4295.8,0.029]
[1757091233885,12.06900092,4295.9,4295.8,0.029]
[1757091234085,12.98880092,4295.9,4295.8,0.029]
[1757091234864,12.53740092,4295.9,4295.8,0.029]
[1757091235071,12.98880092,4295.9,4295.8,0.029]
[1757091235453,9.98880092,4295.9,4295.8,0.029]
[1757091236065,4.35500092,4295.9,4295.8,0.029]
[1757091236265,8.27700092,4295.9,4295.8,0.029]
[1757091236478,8.74540092,4295.9,4295.8,0.029]
[1757091236670,9.98880092,4295.9,4295.8,0.029]
[1757091237615,7.96480092,4295.9,4295.8,0.029]
[1757091238078,4.04280092,4295.9,4295.8,0.3231]
[1757091238396,7.96480092,4295.9,4295.8,0.3231]
[1757091238768,0.001,4296.8,4295.8,5.06983042]
[1757091238967,0.116,4296.4,4296.0,6.58468046]
[1757091239172,0.116,4296.4,4295.9,4.09823042]
[1757091239173,3.922,4296.3,4295.9,4.09823042]
[1757091239495,3.922,4296.3,4296.0,4.09823042]
[1757091239496,0.116,4296.1,4296.0,4.09823042]
[1757091239789,7.48169255,4296.1,4296.0,4.09823042]
[1757091240488,7.03029255,4296.1,4296.0,4.09823042]
[1757091240657,6.24969255,4296.1,4296.0,4.09823042]
[1757091241402,3.922,4296.1,4296.0,4.09823042]
[1757091241608,3.922,4296.1,4296.0,4.39233042]
[1757091241772,4.038,4296.1,4296.0,4.85703042]
[1757091241972,0.116,4296.1,4296.0,4.39233042]
[1757091242179,4.038,4296.1,4296.0,4.39233042]
[1757091242377,4.038,4296.1,4296.0,0.2941]
[1757091243378,6.36573226,4296.1,4295.9,4.09823042]
[1757091243579,6.36569883,4296.1,4295.9,4.09823042]
[1757091244128,4.038,4296.1,4296.0,0.2941]
[1757091244292,3.922,4296.2,4296.0,1.35532304]
[1757091244503,3.922,4296.2,4296.0,0.2941]
[1757091244830,3.922,4296.2,4295.9,4.09823042]
[1757091244831,2.44374674,4296.0,4295.9,4.09823042]
[1757091244980,6.36574674,4296.0,4295.9,4.09823042]
[1757091245179,4.038,4296.0,4295.9,4.09823042]
[1757091245781,6.36574674,4296.0,4295.9,4.09823042]
[1757091245976,4.3502,4296.0,4295.9,4.09823042]
[1757091246182,7.01334674,4296.0,4295.9,4.09823042]
[1757091246499,7.48174674,4296.0,4295.9,4.09823042]
[1757091246699,14.0664272,4296.0,4295.9,4.09823042]
[1757091247212,14.8584272,4296.0,4295.9,4.09823042]
[1757091248389,3.11980092,4295.9,4295.8,0.029]
[1757091248594,4.03960092,4295.9,4295.8,0.029]
[1757091248908,4.35180092,4295.9,4295.8,0.029]
[1757091249415,2.32780092,4295.9,4295.8,0.029]
[1757091254025,2.32780092,4295.9,4295.8,0.3231]
[1757091254514,3.922,4296.0,4295.8,4.42133042]
[1757091254714,3.922,4296.0,4295.9,4.09823042]
[1757091255039,3.922,4296.0,4295.9,4.87493042]
[1757091255195,0.001,4296.8,4295.9,4.87493042]
[1757091255196,0.001,4296.8,4295.9,2.12774109]
[1757091255382,1.908,4296.7,4296.2,8.91231821]
[1757091255580,1.908,4296.7,4296.6,0.2941]
[1757091256002,1.908,4296.7,4296.6,0.7767]
[1757091256201,1.908,4296.7,4296.6,0.99410684]
[1757091256595,0.001,4296.8,4296.6,3.86743223]
[1757091256782,3.923,4296.8,4296.7,0.70000684]
[1757091256982,3.923,4296.8,4296.7,0.99410684]
[1757091257187,0.001,4296.8,4296.7,3.50527435]
[1757091257387,0.001,4296.8,4296.7,1.17790684]
[1757091257615,0.001,4296.8,4296.7,0.99410684]
[1757091257820,0.001,4296.8,4296.7,3.32147435]
[1757091257996,0.001,4296.8,4296.7,2.23472515]
[1757091258184,0.001,4296.8,4296.7,2.05092515]
[1757091258390,0.001,4296.8,4296.7,0.21740684]
[1757091258593,2.63041334,4296.8,4296.7,0.21740684]
[1757091258904,0.001,4296.8,4296.7,0.21740684]
[1757091261122,0.001,4296.8,4296.7,0.2941]
[1757091261636,0.001,4296.8,4296.7,3.10406751]
[1757091262139,0.001,4296.8,4296.7,9.68874797]
[1757091262322,0.001,4296.8,4296.7,3.10406751]
[1757091262727,4.038,4297.3,4297.2,3.90036347]
[1757091262920,4.038,4297.3,4297.2,5.06709982]
[1757091262921,3.922,4297.3,4297.2,5.06709982]
[1757091263244,0.001,4297.3,4297.2,5.06709982]
[1757091264518,0.001,4297.3,4297.2,4.58449982]
[1757091264936,0.001,4297.3,4297.2,5.06709982]
[1757091265244,0.001,4297.3,4297.2,15.13672386]
[1757091265429,0.001,4297.3,4297.2,15.43652386]
[1757091265823,0.001,4297.3,4297.2,15.25272386]
[1757091266215,0.001,4297.3,4297.2,22.42272386]
[1757091266446,0.001,4297.3,4297.2,11.87049982]
[1757091266737,0.001,4297.3,4297.2,14.19759653]
[1757091267445,0.001,4297.3,4297.2,14.86399653]
[1757091267810,0.001,4297.3,4297.2,14.68019653]
[1757091268641,0.001,4297.3,4297.2,14.89668037]
[1757091268826,0.001,4297.3,4297.2,18.81668037]
[1757091269217,2.76950108,4298.7,4298.1,3.87236347]
[1757091269437,1.919,4298.5,4298.2,3.87236347]
[1757091269616,0.3021,4298.3,4298.2,3.87236347]
[1757091269825,3.53300117,4298.3,4298.2,3.87236347]
[1757091273343,3.07180117,4298.3,4298.2,3.87236347]
[1757091273529,3.53300117,4298.3,4298.2,3.87236347]
[1757091274357,3.53400117,4298.3,4298.2,3.87236347]
[1757091276049,0.3031,4298.3,4298.2,3.87236347]
[1757091276445,2.62960117,4298.3,4298.2,3.87236347]
[1757091276650,0.001,4298.3,4298.2,3.87236347]
[1757091276822,0.001,4298.3,4298.2,4.16646347]
[1757091277026,0.001,4298.3,4298.2,4.58310982]
[1757091277224,0.001,4298.3,4298.2,6.90966512]
[1757091277423,0.001,4298.3,4298.2,7.39226512]
[1757091279057,0.7463,4298.3,4298.2,3.87236347]
[1757091279638,0.2939,4298.3,4298.2,3.87236347]
[1757091280157,0.7542,4298.3,4298.2,3.87236347]
[1757091280932,0.2939,4298.3,4298.2,3.87236347]
[1757091281557,0.7542,4298.3,4298.2,3.87236347]
[1757091281730,3.08070117,4298.3,4298.2,3.87236347]
[1757091282128,3.54500117,4298.3,4298.2,3.87236347]
[1757091282956,2.32677183,4297.8,4297.7,3.87236347]
[1757091283162,2.32699583,4297.4,4297.1,0.116]
[1757091283364,6.24607259,4297.3,4297.2,0.21703895]
[1757091283534,4.035,4297.3,4296.8,4.2]
[1757091283842,4.7882,4297.3,4296.9,0.21705549]
[1757091284030,4.3279,4297.3,4297.0,0.21705549]
[1757091284231,4.7882,4297.3,4297.1,0.21705549]
[1757091284430,4.035,4297.3,4297.2,0.21705549]
[1757091285224,7.11524256,4297.3,4297.2,0.21705549]
[1757091285429,5.2525,4297.3,4297.2,0.21705549]
[1757091286554,4.3279,4297.3,4297.2,0.21705549]
[1757091286950,4.7882,4297.3,4297.2,0.21705549]
[1757091287158,7.57954256,4297.3,4297.2,0.21705549]
[1757091287357,5.2525,4297.3,4297.2,0.21705549]
[1757091287756,7.57954256,4297.3,4297.2,0.21705549]
[1757091288157,2.32721949,4297.0,4296.6,0.004]
[1757091288360,2.32731334,4296.8,4296.7,0.21735722]
[1757091288562,2.32731334,4296.8,4296.6,0.004]
[1757091288563,2.32736751,4296.7,4296.6,0.004]
[1757091288767,3.25196751,4296.7,4296.6,0.004]
[1757091288924,3.54486751,4296.7,4296.6,0.004]
[1757091289965,0.7532,4296.7,4296.6,0.004]
[1757091290260,3.08056751,4296.7,4296.6,0.004]
[1757091290663,2.32710778,4297.2,4296.6,0.2981]
[1757091290871,0.116,4296.8,4296.6,0.2981]
[1757091291074,3.919,4296.7,4296.6,0.7909]
[1757091291372,3.919,4296.7,4296.6,0.84269006]
[1757091291666,3.919,4296.7,4296.6,0.2981]
[1757091294564,3.919,4296.7,4296.6,2.62552168]
[1757091294775,3.919,4296.7,4296.6,0.2981]
[1757091294941,3.919,4296.7,4296.6,3.11832168]
[1757091295280,4.035,4297.2,4296.8,2.32727029]
[1757091295479,4.035,4297.2,4296.9,0.5445592]
[1757091296239,4.4953,4297.2,4296.9,0.5445592]
[1757091296753,6.82239841,4297.2,4296.9,0.5445592]
[1757091296956,0.2929,4297.0,4296.6,0.004]
[1757091297266,0.4603,4297.1,4296.6,2.33141756]
[1757091297569,4.035,4297.2,4297.0,0.2941]
[1757091298454,4.035,4297.2,4296.7,0.4928]
[1757091298855,4.035,4297.2,4296.8,4.2]
[1757091299057,4.035,4297.2,4296.9,1.41942031]
[1757091299255,3.919,4297.2,4297.1,0.2941]
[1757091299953,3.919,4297.2,4297.0,4.316]
[1757091300160,0.7532,4297.1,4297.0,4.316]
[1757091300470,1.3335,4297.1,4297.0,4.2]
[1757091300667,0.8692,4297.1,4297.0,4.2]
[1757091301469,3.66065086,4297.1,4297.0,4.2]
[1757091302370,3.919,4297.2,4297.0,4.2]
[1757091302568,3.54465086,4297.1,4297.0,4.2]
[1757091303094,2.32725918,4296.9,4296.8,0.025]
[1757091303241,10.03825918,4296.9,4296.8,0.025]
[1757091303441,2.32736751,4296.7,4296.6,0.004]
[1757091303660,2.32747585,4296.5,4296.3,4.2]
[1757091303872,12.17903002,4296.4,4296.3,4.2]
[1757091304244,12.97103002,4296.4,4296.3,4.2]
[1757091304668,12.97103002,4296.4,4295.8,0.029]
[1757091304669,3.11963837,4296.2,4295.8,0.029]
[1757091305078,4.33713837,4296.2,4295.8,0.029]
[1757091306969,8.25613837,4296.2,4295.8,0.029]
[1757091307966,7.46413837,4296.2,4295.8,0.029]
[1757091308277,6.54053837,4296.2,4295.8,0.029]
[1757091308444,7.00083837,4296.2,4295.8,0.029]
[1757091309175,7.46513837,4296.2,4295.8,0.029]
[1757091310759,7.46513837,4296.2,4296.1,4.204]
[1757091313091,7.00483837,4296.2,4296.1,4.204]
[1757091313705,7.43913837,4296.2,4296.1,4.204]
[1757091314062,6.24763837,4296.2,4296.1,4.204]
[1757091314571,3.92,4296.2,4296.1,4.5102]
[1757091314775,3.92,4296.2,4296.1,5.88032]
[1757091314975,3.92,4296.2,4296.1,4.96412]
[1757091315187,4.036,4296.2,4296.1,4.96412]
[1757091315382,4.036,4296.2,4296.1,5.88032]
[1757091315584,0.116,4296.2,4296.1,1.22352]
[1757091315793,4.036,4296.4,4296.1,1.68032]
[1757091315985,4.036,4296.4,4296.2,0.9162]
[1757091316189,4.036,4296.4,4296.1,0.76412]
[1757091316190,4.036,4296.4,4296.3,1.2224]
[1757091316596,4.036,4296.4,4296.3,0.3062]
[1757091317615,0.116,4296.4,4296.3,1.344492]
[1757091317778,3.92,4296.6,4296.3,5.660492]
[1757091317983,3.92,4296.6,4296.4,0.9162]
[1757091318289,3.92,4296.6,4296.3,4.6222]
[1757091318476,3.92,4296.6,4296.3,5.5384]
[1757091318675,3.92,4296.6,4296.4,0.4568]
[1757091318999,3.92,4296.6,4296.5,0.3062]
[1757091320286,4.036,4296.6,4296.5,0.3062]
[1757091320490,3.92,4296.6,4296.5,0.3062]
[1757091320902,3.92,4296.6,4296.5,0.763]
[1757091321099,3.92,4296.6,4296.5,1.7187]
[1757091321423,3.92,4296.6,4296.5,0.3062]
[1757091322389,3.92,4296.6,4296.5,5.4224]
[1757091322725,0.116,4296.8,4296.5,5.4224]
[1757091323031,3.92,4297.0,4296.8,2.32728343]
[1757091323199,3.92,4297.0,4296.7,0.116]
[1757091323200,3.92,4297.0,4296.9,1.2224]
[1757091323519,0.001,4297.1,4296.9,1.2224]
[1757091323520,0.001,4297.1,4297.0,2.32720502]
[1757091323717,0.001,4297.1,4297.0,3.26667707]
[1757091323921,0.001,4297.1,4297.0,6.57287707]
[1757091324087,0.001,4297.1,4297.0,6.54960502]
[1757091325524,0.001,4297.1,4297.0,13.12634376]
[1757091325824,0.001,4297.1,4297.0,15.39425173]
[1757091330721,0.001,4297.1,4297.0,8.36071299]
[1757091330935,0.3162,4297.1,4296.9,0.81543031]
[1757091331137,0.9302,4297.0,4296.7,4.2]
[1757091331295,0.3152,4296.8,4296.7,9.52733005]
[1757091331496,0.001,4297.1,4296.9,4.2]
[1757091331741,0.001,4297.1,4297.0,8.90394376]
[1757091331899,0.001,4297.1,4297.0,9.21014376]
[1757091332095,0.001,4297.1,4297.0,8.90394376]
[1757091332299,0.001,4297.1,4297.0,9.21014376]
[1757091333519,0.001,4297.1,4296.9,6.52725708]
[1757091333520,0.3162,4297.1,4296.9,6.52725708]
[1757091333817,0.3162,4297.1,4296.9,6.52724265]
[1757091334238,0.9302,4297.0,4296.9,4.2]
[1757091334418,1.2454,4297.0,4296.9,4.2]
[1757091337786,0.001,4297.1,4296.9,4.2]
[1757091338131,0.3152,4297.0,4296.9,4.2]
[1757091338377,1.2454,4297.0,4296.9,4.2]
[1757091338536,3.57260502,4297.0,4296.9,4.2]
[1757091341542,0.001,4297.1,4296.9,4.4905]
[1757091341746,3.263,4297.0,4296.9,4.2]
[1757091342875,6.53320502,4297.0,4296.9,4.2]
[1757091345288,6.53320502,4297.0,4296.3,0.004]
[1757091345289,2.32747585,4296.5,4296.3,0.004]
[1757091345472,12.82326876,4296.4,4296.3,0.004]
[1757091345675,14.07326876,4296.4,4296.3,0.004]
[1757091345839,3.57753002,4296.4,4296.3,0.004]
[1757091346150,7.49653002,4296.4,4296.3,0.004]
[1757091346548,8.28853002,4296.4,4296.3,0.004]
[1757091346751,14.86526876,4296.4,4296.3,0.004]
[1757091347383,0.792,4296.2,4296.1,0.004]
[1757091347672,3.11980092,4295.9,4295.8,1e-08]
[1757091347873,9.06080092,4295.9,4295.8,1e-08]
[1757091348075,10.00380092,4295.9,4295.8,1e-08]
[1757091348295,3.11985511,4295.8,4295.7,1e-08]
[1757091348587,6.11985511,4295.8,4295.7,1e-08]
[1757091348883,7.48862196,4295.8,4295.7,1e-08]
[1757091350157,11.40862196,4295.8,4295.7,1e-08]
[1757091352183,7.48862196,4295.8,4295.7,1e-08]
[1757091352385,11.40862196,4295.8,4295.7,1e-08]
[1757091352956,11.28985511,4295.8,4295.7,1e-08]
[1757091355786,11.38317906,4295.8,4295.7,1e-08]
[1757091355986,10.93367906,4295.8,4295.7,1e-08]
[1757091356173,11.38317906,4295.8,4295.7,1e-08]
[1757091356590,10.88967906,4295.8,4295.7,1e-08]
[1757091356789,10.44017906,4295.8,4295.7,1e-08]
[1757091358384,10.13317906,4295.8,4295.7,1e-08]
[1757091358579,10.88967906,4295.8,4295.7,1e-08]
[1757091359009,10.44017906,4295.8,4295.7,1e-08]
[1757091359702,11.38317906,4295.8,4295.7,1e-08]
[1757091360008,10.88967906,4295.8,4295.7,1e-08]
[1757091360302,9.34117906,4295.8,4295.7,1e-08]
[1757091360487,9.24785511,4295.8,4295.7,0.29050001]
[1757091360684,6.24785511,4295.8,4295.7,0.29050001]
[1757091360899,2.32785511,4295.8,4295.7,0.73940001]
[1757091361084,3.92,4295.8,4295.7,4.93940001]
[1757091361288,3.92,4295.8,4295.7,1.22200001]
[1757091361483,4.036,4295.8,4295.7,1.22200001]
[1757091361809,6.36385511,4295.8,4295.7,1.22200001]
[1757091362876,6.36385511,4295.8,4295.7,0.77310001]
[1757091363076,6.36385511,4295.8,4295.7,1.22200001]
[1757091364007,3.92,4295.8,4295.7,1.76420001]
[1757091364174,3.92,4295.8,4295.7,4.09210931]
[1757091364380,3.92,4295.8,4295.7,8.29210931]
[1757091364575,0.001,4296.4,4296.0,2.32771596]
[1757091364784,3.92,4296.3,4296.1,4.2]
[1757091365107,3.92,4296.3,4296.2,5.422]
[1757091365419,0.001,4296.4,4296.3,2.3275842]
[1757091365582,0.001,4296.4,4296.3,3.3750842]
[1757091365777,0.001,4296.4,4296.3,3.6655842]
[1757091365974,0.001,4296.4,4296.3,7.37110404]
[1757091366613,0.001,4296.4,4296.3,8.16310404]
[1757091367877,0.001,4296.4,4296.3,22.66310404]
[1757091372297,0.001,4297.6,4297.2,6.49909671]
[1757091372502,0.001,4297.6,4297.2,13.41809671]
[1757091372697,0.001,4297.6,4297.2,15.97750468]
[1757091372893,0.001,4297.6,4297.2,16.86870468]
[1757091373099,0.001,4297.6,4297.2,16.96194901]
[1757091373299,0.001,4297.6,4297.2,16.52264901]
[1757091373498,0.001,4297.6,4297.2,16.96194901]
[1757091377890,0.001,4297.6,4297.2,33.72355936]
[1757091378097,0.001,4297.6,4297.2,34.51555936]
[1757091378327,0.001,4297.6,4297.2,41.68555936]
[1757091378626,0.001,4298.3,4297.2,41.68555936]
[1757091378798,0.001,4298.3,4298.1,5.32660943]
[1757091378989,0.001,4298.3,4298.2,13.41182085]
[1757091379190,0.001,4298.3,4298.2,14.5712553]
[1757091379841,0.001,4298.3,4298.2,15.45646682]
[1757091380616,0.001,4298.9,4298.4,0.792]
[1757091380824,0.001,4298.9,4298.8,22.87984092]
[1757091381027,0.001,4298.9,4298.8,9.53573057]
[1757091382404,0.001,4298.9,4298.8,9.65173057]
[1757091382629,0.001,4298.9,4298.8,10.54293057]
[1757091383819,0.001,4298.9,4298.8,27.30454092]
[1757091384014,0.001,4298.9,4298.8,29.57244889]
[1757091384219,0.001,4298.9,4298.8,30.36444889]
[1757091385538,0.001,4298.9,4298.8,13.60283854]
[1757091386045,0.001,4298.9,4298.8,24.91683854]
[1757091388428,0.001,4298.9,4298.8,17.74683854]
[1757091390144,0.001,4298.9,4298.8,13.60283854]
[1757091392865,0.001,4298.9,4298.8,13.60083854]
[1757091393030,1e-08,4299.2,4299.1,6.11806824]
[1757091393239,1e-08,4299.2,4299.1,10.15006824]
[1757091393455,1e-08,4299.2,4299.1,11.33276824]
[1757091393620,1e-08,4299.2,4299.1,24.60700081]
[1757091393827,0.4449,4300.9,4300.5,2.32531101]
[1757091394025,0.001,4301.5,4300.5,6.47384211]
[1757091394234,1.2422,4300.6,4300.5,6.24131101]
[1757091395224,0.7552,4300.6,4300.5,6.24131101]
[1757091395475,1.2422,4300.6,4300.5,6.24131101]
[1757091397672,0.3103,4300.6,4300.5,6.24131101]
[1757091397860,0.7552,4300.6,4300.5,6.24131101]
[1757091398259,1.2422,4300.6,4300.5,6.24131101]
[1757091403761,1.2422,4300.6,4300.5,6.35731101]
[1757091405591,1.2422,4300.6,4300.4,3.914]
[1757091405904,1.2422,4300.6,4299.0,2.32611518]
[1757091405905,0.9074,4300.5,4300.2,3.914]
[1757091406201,0.3006,4300.3,4300.1,3.914]
[1757091406398,0.9074,4300.2,4299.2,0.02326014]
[1757091406570,0.9074,4300.2,4300.1,2.32552731]
[1757091406765,1.208,4300.2,4300.1,6.23952731]
[1757091408917,1.208,4300.2,4299.5,6.23980122]
[1757091409111,0.9074,4300.1,4299.8,2.3256571]
[1757091409263,0.3006,4299.9,4299.8,2.3256571]
[1757091409469,1.208,4299.9,4299.8,2.3256571]
[1757091411420,0.001,4300.2,4300.1,2.32552731]
[1757091411625,0.001,4300.2,4300.1,6.23952731]
[1757091411930,0.4352,4300.2,4300.1,9.23952731]
[1757091412126,0.001,4300.2,4300.1,9.23952731]
[1757091412296,0.001,4300.2,4300.1,9.55382731]
[1757091412492,0.001,4300.2,4300.1,11.05998844]
[1757091412700,0.001,4300.2,4300.1,11.98478844]
[1757091413197,0.001,4301.5,4301.0,2.32504068]
[1757091413397,0.001,4301.5,4301.4,6.11682447]
[1757091413714,0.001,4301.5,4301.4,10.34512447]
[1757091413895,0.001,4301.5,4301.4,12.62940621]
[1757091414100,0.001,4301.5,4301.4,10.6914472]
[1757091414432,0.001,4301.5,4301.4,11.0057472]
[1757091414601,0.001,4301.5,4301.4,10.91260621]
[1757091415102,0.001,4301.5,4301.4,10.59830621]
[1757091415516,1.209,4301.5,4301.4,7.034]
[1757091415716,1.209,4301.5,4301.4,9.35882447]
[1757091417243,0.3016,4301.5,4301.4,9.35882447]
[1757091417447,0.7358,4301.5,4301.4,9.35882447]
[1757091417742,0.001,4301.5,4301.4,9.67312447]
[1757091417925,0.001,4301.5,4301.4,10.87292311]
[1757091418709,0.001,4301.5,4301.4,10.55862311]
[1757091420416,0.001,4301.5,4301.4,10.87292311]
[1757091421342,0.001,4301.5,4301.4,10.55862311]
[1757091421949,0.3016,4301.5,4301.4,10.55862311]
[1757091422152,1.209,4301.5,4300.1,1.50616113]
[1757091422353,0.9074,4301.4,4300.4,2.32536508]
[1757091422646,0.9074,4301.4,4300.8,2.3251488]
[1757091422846,0.9074,4301.4,4301.2,2.32492652]
[1757091423053,0.001,4301.5,4301.2,2.32492652]
[1757091423054,1.208,4301.3,4301.2,2.32492652]
[1757091423356,1.208,4301.3,4301.1,2.32496555]
[1757091423658,0.9074,4301.2,4301.1,2.32498663]
[1757091423957,1.208,4301.2,4301.1,2.32498663]
[1757091425449,1.208,4301.2,4301.0,3.0]